fUSD/lending_fUSD_20250504
["ID","MTS","AMOUNT","RATE_DAILY","PERIOD"]
[359860609,1746376258872,-847.36,0.00019808,2]
[359860610,1746376258881,-450.0,0.00019808,2]
[359860611,1746376258891,-450.0,0.00019808,2]
[359860612,1746376258900,-450.0,0.00019808,2]
[359860613,1746376258909,-3287.6,0.00019808,2]
[359860614,1746376258918,-276.85,0.00019808,2]
[359860615,1746376258928,-450.0,0.00019808,2]
[359860616,1746376258938,-450.0,0.00019808,2]
[359860617,1746376258947,-450.0,0.00019808,2]
[359860618,1746376258956,-450.0,0.00019808,2]
[359860619,1746376258965,-450.0,0.00019808,2]
[359860620,1746376258974,-450.0,0.00019808,2]
[359860621,1746376258984,-450.0,0.00019808,2]
[359860622,1746376258993,-450.0,0.00019808,2]
[359860623,1746376259002,-450.0,0.00019808,2]
[359860624,1746376259012,-450.0,0.00019808,2]
[359860625,1746376259021,-281.17,0.00019808,2]
[359860626,1746376259030,-450.0,0.00019808,2]
[359860627,1746376259040,-884.57,0.00019808,2]
[359860628,1746376259050,-450.0,0.00019808,2]
[359860629,1746376259199,-450.0,0.00019808,2]
[359860630,1746376259210,-167.44,0.00019808,2]
[359860631,1746376259220,-284.63,0.00019808,2]
[359860632,1746376259230,-450.0,0.00019808,2]
[359860633,1746376259239,-450.0,0.00019808,2]
[359860634,1746376259249,-2982.32,0.00019808,2]
[359860635,1746376259259,-450.0,0.00019808,2]
[359860636,1746376259268,-450.0,0.00019808,2]
[359860637,1746376259278,-450.0,0.00019808,2]
[359860638,1746376259287,-450.0,0.00019808,2]
[359860639,1746376259296,-450.0,0.00019808,2]
[359860640,1746376259306,-450.0,0.00019808,2]
[359860641,1746376259315,-450.0,0.00019808,2]
[359860642,1746376259328,-581.3400847,0.00019808,2]
[359860643,1746376259338,-566.08,0.00019808,2]
[359860644,1746376259347,-450.0,0.00019808,2]
[359860645,1746376259356,-214.56,0.00019808,2]
[359860646,1746376259366,-252.74,0.00019808,2]
[359860647,1746376259376,-450.0,0.00019808,2]
[359860648,1746376259385,-529.24,0.00019808,2]
[359860649,1746376259395,-550.0,0.00019808,2]
[359860650,1746376259404,-450.0,0.00019808,2]
[359860651,1746376259415,-450.0,0.00019808,2]
[359860652,1746376259424,-450.0,0.00019808,2]
[359860653,1746376259433,-450.0,0.00019808,2]
[359860654,1746376259443,-450.0,0.00019808,2]
[359860655,1746376259452,-2778.18,0.00019808,2]
[359860656,1746376259462,-450.0,0.00019808,2]
[359860657,1746376259472,-450.0,0.00019808,2]
[359860658,1746376259482,-450.0,0.00019808,2]
[359860659,1746376259491,-450.0,0.00019808,2]
[359860660,1746376259501,-450.0,0.00019808,2]
[359860661,1746376259511,-450.0,0.00019808,2]
[359860662,1746376259521,-450.0,0.00019808,2]
[359860663,1746376259531,-540.0,0.00019808,2]
[359860664,1746376259541,-450.0,0.00019808,2]
[359860665,1746376259550,-450.0,0.00019808,2]
[359860666,1746376259560,-450.0,0.00019808,2]
[359860667,1746376259569,-450.0,0.00019808,2]
[359860668,1746376259579,-450.0,0.00019808,2]
[359860669,1746376259590,-520.0,0.00019808,2]
[359860670,1746376259599,-450.0,0.00019808,2]
[359860671,1746376259609,-450.0,0.00019808,2]
[359860672,1746376259619,-550.0,0.00019808,2]
[359860673,1746376259628,-450.0,0.00019808,2]
[359860674,1746376259638,-450.0,0.00019808,2]
[359860675,1746376259647,-450.0,0.00019808,2]
[359860676,1746376259657,-525.98,0.00019808,2]
[359860677,1746376259667,-450.0,0.00019808,2]
[359860678,1746376259678,-450.0,0.00019808,2]
[359860679,1746376259688,-450.0,0.00019808,2]
[359860680,1746376259698,-450.0,0.00019808,2]
[359860681,1746376259707,-450.0,0.00019808,2]
[359860682,1746376259716,-450.0,0.00019808,2]
[359860683,1746376259726,-1597.78,0.00019808,2]
[359860684,1746376259735,-450.0,0.00019808,2]
[359860685,1746376259745,-450.0,0.00019808,2]
[359860686,1746376259755,-450.0,0.00019808,2]
[359860687,1746376259765,-554.00953404,0.00019808,2]
[359860688,1746376259775,-450.0,0.00019808,2]
[359860689,1746376259784,-575.29,0.00019808,2]
[359860690,1746376259794,-527.12,0.00019808,2]
[359860691,1746376259803,-450.0,0.00019808,2]
[359860692,1746376259813,-450.0,0.00019808,2]
[359860693,1746376259822,-450.0,0.00019808,2]
[359860694,1746376259832,-450.0,0.00019808,2]
[359860695,1746376259842,-450.0,0.00019808,2]
[359860696,1746376259851,-550.0,0.00019808,2]
[359860697,1746376259861,-450.0,0.00019808,2]
[359860698,1746376259871,-450.0,0.00019808,2]
[359860699,1746376259880,-450.0,0.00019808,2]
[359860700,1746376259889,-450.0,0.00019808,2]
[359860701,1746376259898,-570.0,0.00019808,2]
[359860702,1746376259908,-450.0,0.00019808,2]
[359860703,1746376259917,-450.0,0.00019808,2]
[359860704,1746376259927,-450.0,0.00019808,2]
[359860705,1746376259936,-450.0,0.00019808,2]
[359860706,1746376259945,-23925.41,0.00019808,2]
[359860707,1746376259954,-450.0,0.00019808,2]
[359860708,1746376259963,-450.0,0.00019808,2]
[359860709,1746376259972,-450.0,0.00019808,2]
[359860710,1746376259982,-450.0,0.00019808,2]
[359860711,1746376259991,-450.0,0.00019808,2]
[359860712,1746376260000,-269.22,0.00019808,2]
[359860713,1746376260009,-564.68,0.00019808,2]
[359860714,1746376260019,-436.1,0.00019808,2]
[359860715,1746376260028,-450.0,0.00019808,2]
[359860716,1746376260038,-450.0,0.00019808,2]
[359860717,1746376260048,-549.04,0.00019808,2]
[359860718,1746376260058,-201.42871297,0.00019808,2]
[359860719,1746376260068,-450.0,0.00019808,2]
[359860720,1746376260078,-660.77,0.00019808,2]
[359860721,1746376260087,-489.51694568,0.00019808,2]
[359860722,1746376260097,-450.0,0.00019808,2]
[359860723,1746376260106,-281.43,0.00019808,2]
[359860724,1746376260116,-255.96,0.00019808,2]
[359860725,1746376260125,-450.0,0.00019808,2]
[359860726,1746376260134,-450.0,0.00019808,2]
[359860727,1746376260143,-450.0,0.00019808,2]
[359860728,1746376260153,-450.0,0.00019808,2]
[359860729,1746376260162,-450.0,0.00019808,2]
[359860730,1746376260171,-450.0,0.00019808,2]
[359860731,1746376260181,-418.95,0.00019808,2]
[359860732,1746376260190,-570.01,0.00019808,2]
[359860733,1746376260200,-450.0,0.00019808,2]
[359860734,1746376260209,-450.0,0.00019808,2]
[359860735,1746376260219,-208.4,0.00019808,2]
[359860736,1746376260228,-482.55,0.00019808,2]
[359860737,1746376260238,-450.0,0.00019808,2]
[359860738,1746376260247,-450.0,0.00019808,2]
[359860739,1746376260256,-395.52,0.00019808,2]
[359860740,1746376260265,-450.0,0.00019808,2]
[359860741,1746376260275,-450.0,0.00019808,2]
[359860742,1746376260284,-1612.09,0.00019808,2]
[359860743,1746376260294,-450.0,0.00019808,2]
[359860744,1746376260304,-237.47911116,0.00019809,2]
[359860745,1746376260314,-773.28006414,0.00019818,2]
[359860746,1746376260328,-855.13848233,0.00019832,2]
[359860747,1746376260338,-500.0,0.00019834,2]
[359860748,1746376260348,-500.0,0.00019834,2]
[359860749,1746376260357,-568.5369027,0.00019834,2]
[359860750,1746376260368,-500.0,0.00019834,2]
[359860751,1746376260377,-500.0,0.00019834,2]
[359860752,1746376260386,-500.0,0.00019834,2]
[359860753,1746376260395,-500.0,0.00019834,2]
[359860754,1746376260407,-500.0,0.00019834,2]
[359860755,1746376260416,-575.75,0.00019834,2]
[359860756,1746376260426,-164.84217052,0.00019835,2]
[359860757,1746376260435,-494.0,0.00019835,2]
[359860758,1746376260444,-250.0,0.00019835,2]
[359860759,1746376260453,-450.0,0.00019835,2]
[359860760,1746376260463,-450.0,0.00019835,2]
[359860761,1746376260474,-450.0,0.00019835,2]
[359860762,1746376260483,-450.0,0.00019835,2]
[359860763,1746376260492,-585.13,0.00019835,2]
[359860764,1746376260502,-251.87,0.00019835,2]
[359860765,1746376260512,-550.0,0.00019835,2]
[359860766,1746376260521,-500.0,0.00019835,2]
[359860767,1746376260531,-328.54,0.00019835,2]
[359860768,1746376260540,-514.28,0.00019835,2]
[359860769,1746376260550,-450.0,0.00019835,2]
[359860770,1746376260559,-482.45,0.00019835,2]
[359860771,1746376260568,-188.79780391,0.00019835,2]
[359860772,1746376260577,-520.0,0.00019835,2]
[359860773,1746376260587,-450.0,0.00019835,2]
[359860774,1746376260598,-587.63,0.00019835,2]
[359860775,1746376260607,-450.0,0.00019835,2]
[359860776,1746376260616,-500.0,0.00019835,2]
[359860777,1746376260625,-218.48,0.00019835,2]
[359860778,1746376260635,-450.0,0.00019835,2]
[359860779,1746376260644,-169.3,0.00019835,2]
[359860780,1746376260653,-450.0,0.00019835,2]
[359860781,1746376260663,-450.0,0.00019835,2]
[359860782,1746376260672,-450.0,0.00019835,2]
[359860783,1746376260683,-582.27,0.00019835,2]
[359860784,1746376260693,-450.0,0.00019835,2]
[359860785,1746376260704,-517.74,0.00019835,2]
[359860786,1746376260713,-500.0,0.00019835,2]
[359860787,1746376260723,-450.0,0.00019835,2]
[359860788,1746376260733,-300.59,0.00019835,2]
[359860789,1746376260742,-450.0,0.00019835,2]
[359860790,1746376260752,-187.53,0.00019835,2]
[359860791,1746376260761,-527.04,0.00019835,2]
[359860792,1746376260770,-450.0,0.00019835,2]
[359860793,1746376260779,-450.0,0.00019835,2]
[359860794,1746376260789,-487.73,0.00019835,2]
[359860795,1746376260798,-450.0,0.00019835,2]
[359860796,1746376260807,-422.52,0.00019835,2]
[359860797,1746376260817,-450.0,0.00019835,2]
[359860798,1746376260827,-572.35012035,0.00019835,2]
[359860799,1746376260838,-450.0,0.00019835,2]
[359860800,1746376260847,-450.0,0.00019835,2]
[359860801,1746376260857,-452.02,0.00019835,2]
[359860802,1746376260866,-550.0,0.00019835,2]
[359860803,1746376260876,-450.0,0.00019835,2]
[359860804,1746376260886,-280.46,0.00019835,2]
[359860805,1746376260895,-491.3,0.00019835,2]
[359860806,1746376260907,-450.0,0.00019835,2]
[359860807,1746376260917,-450.0,0.00019835,2]
[359860808,1746376260926,-450.0,0.00019835,2]
[359860809,1746376260935,-450.0,0.00019835,2]
[359860810,1746376260944,-450.0,0.00019835,2]
[359860811,1746376260955,-322.01,0.00019835,2]
[359860812,1746376260965,-450.0,0.00019835,2]
[359860813,1746376260974,-450.0,0.00019835,2]
[359860814,1746376260983,-450.0,0.00019835,2]
[359860815,1746376260992,-166.53,0.00019835,2]
[359860816,1746376261002,-450.0,0.00019835,2]
[359860817,1746376261011,-550.0,0.00019835,2]
[359860818,1746376261021,-213.68835017,0.00019835,2]
[359860819,1746376261030,-450.0,0.00019835,2]
[359860820,1746376261039,-450.0,0.00019835,2]
[359860821,1746376261049,-450.0,0.00019835,2]
[359860822,1746376261059,-450.0,0.00019835,2]
[359860823,1746376261071,-450.0,0.00019835,2]
[359860824,1746376261080,-559.14,0.00019835,2]
[359860825,1746376261089,-480.54,0.00019835,2]
[359860826,1746376261098,-550.0,0.00019835,2]
[359860827,1746376261107,-473.15,0.00019835,2]
[359860828,1746376261116,-566.66398239,0.00019835,2]
[359860829,1746376261126,-450.0,0.00019835,2]
[359860830,1746376261135,-450.0,0.00019835,2]
[359860831,1746376261144,-329.52,0.00019835,2]
[359860832,1746376261154,-450.0,0.00019835,2]
[359860833,1746376261163,-450.0,0.00019835,2]
[359860834,1746376261172,-490.76,0.00019835,2]
[359860835,1746376261182,-450.0,0.00019835,2]
[359860836,1746376261191,-450.0,0.00019835,2]
[359860837,1746376261201,-450.0,0.00019835,2]
[359860838,1746376261210,-450.0,0.00019835,2]
[359860839,1746376261219,-1136.58,0.00019835,2]
[359860840,1746376261228,-287.37256473,0.00019835,2]
[359860841,1746376261238,-450.0,0.00019835,2]
[359860842,1746376261247,-450.0,0.00019835,2]
[359860843,1746376261256,-450.0,0.00019835,2]
[359860844,1746376261266,-899.51,0.00019835,2]
[359860845,1746376261275,-450.0,0.00019835,2]
[359860846,1746376261285,-524.17,0.00019835,2]
[359860847,1746376261295,-466.79,0.00019835,2]
[359860848,1746376261305,-450.0,0.00019835,2]
[359860849,1746376261314,-450.0,0.00019835,2]
[359860850,1746376261327,-450.0,0.00019835,2]
[359860851,1746376261336,-386.68,0.00019835,2]
[359860852,1746376261345,-450.0,0.00019835,2]
[359860853,1746376261355,-243.69,0.00019835,2]
[359860854,1746376261366,-450.0,0.00019835,2]
[359860855,1746376261375,-847.36,0.00019835,2]
[359860856,1746376261383,-450.0,0.00019835,2]
[359860857,1746376261393,-450.0,0.00019835,2]
[359860858,1746376261403,-450.0,0.00019835,2]
[359860859,1746376261413,-3287.6,0.00019835,2]
[359860860,1746376261422,-450.0,0.00019835,2]
[359860861,1746376261432,-450.0,0.00019835,2]
[359860862,1746376261441,-550.0,0.00019835,2]
[359860863,1746376261450,-450.0,0.00019835,2]
[359860864,1746376261460,-450.0,0.00019835,2]
[359860865,1746376261469,-450.0,0.00019835,2]
[359860866,1746376261479,-450.0,0.00019835,2]
[359860867,1746376261488,-550.0,0.00019835,2]
[359860868,1746376261498,-224.33,0.00019835,2]
[359860869,1746376261507,-450.0,0.00019835,2]
[359860870,1746376261517,-450.0,0.00019835,2]
[359860871,1746376261526,-884.57,0.00019835,2]
[359860872,1746376261535,-237.72,0.00019835,2]
[359860873,1746376261545,-543.99,0.00019835,2]
[359860874,1746376261554,-450.0,0.00019835,2]
[359860875,1746376261563,-450.0,0.00019835,2]
[359860876,1746376261572,-2982.32,0.00019835,2]
[359860877,1746376261582,-151.46,0.00019835,2]
[359860878,1746376261591,-450.0,0.00019835,2]
[359860879,1746376261600,-450.0,0.00019835,2]
[359860880,1746376261611,-386.57,0.00019835,2]
[359860881,1746376261623,-450.0,0.00019835,2]
[359860882,1746376261632,-450.0,0.00019835,2]
[359860883,1746376261642,-450.0,0.00019835,2]
[359860884,1746376261651,-450.0,0.00019835,2]
[359860885,1746376261660,-550.0,0.00019835,2]
[359860886,1746376261669,-450.0,0.00019835,2]
[359860887,1746376261680,-450.0,0.00019835,2]
[359860888,1746376261690,-184.8,0.00019835,2]
[359860889,1746376261700,-294.54,0.00019835,2]
[359860890,1746376261709,-2778.18,0.00019835,2]
[359860891,1746376261718,-450.0,0.00019835,2]
[359860892,1746376261728,-450.0,0.00019835,2]
[359860893,1746376261738,-450.0,0.00019835,2]
[359860894,1746376261748,-450.0,0.00019835,2]
[359860895,1746376261758,-450.0,0.00019835,2]
[359860896,1746376261768,-550.0,0.00019835,2]
[359860897,1746376261778,-158.46,0.00019835,2]
[359860898,1746376261790,-450.0,0.00019835,2]
[359860899,1746376261799,-283.28,0.00019835,2]
[359860900,1746376261810,-450.0,0.00019835,2]
[359860901,1746376261820,-450.0,0.00019835,2]
[359860902,1746376261831,-357.44,0.00019835,2]
[359860903,1746376261840,-337.88,0.00019835,2]
[359860904,1746376261849,-450.0,0.00019835,2]
[359860905,1746376261859,-450.0,0.00019835,2]
[359860906,1746376261869,-450.0,0.00019835,2]
[359860907,1746376261878,-450.0,0.00019835,2]
[359860908,1746376261889,-525.98,0.00019835,2]
[359860909,1746376261899,-450.0,0.00019835,2]
[359860910,1746376261908,-450.0,0.00019835,2]
[359860911,1746376261918,-460.62,0.00019835,2]
[359860912,1746376261927,-450.0,0.00019835,2]
[359860913,1746376261937,-469.34,0.00019835,2]
[359860914,1746376261947,-450.0,0.00019835,2]
[359860915,1746376261956,-1597.78,0.00019835,2]
[359860916,1746376261966,-450.0,0.00019835,2]
[359860917,1746376261975,-450.0,0.00019835,2]
[359860918,1746376261984,-381.12,0.00019835,2]
[359860919,1746376261994,-450.0,0.00019835,2]
[359860920,1746376262003,-450.0,0.00019835,2]
[359860921,1746376262012,-450.0,0.00019835,2]
[359860922,1746376262022,-450.0,0.00019835,2]
[359860923,1746376262031,-450.0,0.00019835,2]
[359860924,1746376262040,-450.0,0.00019835,2]
[359860925,1746376262050,-450.0,0.00019835,2]
[359860926,1746376262059,-450.0,0.00019835,2]
[359860927,1746376262068,-450.0,0.00019835,2]
[359860928,1746376262078,-450.0,0.00019835,2]
[359860929,1746376262087,-450.0,0.00019835,2]
[359860930,1746376262097,-450.0,0.00019835,2]
[359860931,1746376262231,-450.0,0.00019835,2]
[359860932,1746376262242,-450.0,0.00019835,2]
[359860933,1746376262252,-23925.41,0.00019835,2]
[359860934,1746376262262,-439.78,0.00019835,2]
[359860935,1746376262271,-450.0,0.00019835,2]
[359860936,1746376262280,-500.0,0.00019835,2]
[359860937,1746376262290,-494.95,0.00019835,2]
[359860938,1746376262299,-503.12,0.00019835,2]
[359860939,1746376262308,-450.0,0.00019835,2]
[359860940,1746376262319,-450.0,0.00019835,2]
[359860941,1746376262338,-549.04,0.00019835,2]
[359860942,1746376262348,-450.0,0.00019835,2]
[359860943,1746376262358,-660.77,0.00019835,2]
[359860944,1746376262368,-450.0,0.00019835,2]
[359860945,1746376262377,-450.0,0.00019835,2]
[359860946,1746376262387,-450.0,0.00019835,2]
[359860947,1746376262397,-450.0,0.00019835,2]
[359860948,1746376262408,-292.32,0.00019835,2]
[359860949,1746376262417,-450.0,0.00019835,2]
[359860950,1746376262426,-450.0,0.00019835,2]
[359860951,1746376262436,-570.01,0.00019835,2]
[359860952,1746376262446,-450.0,0.00019835,2]
[359860953,1746376262455,-238.22,0.00019835,2]
[359860954,1746376262465,-482.55,0.00019835,2]
[359860955,1746376262475,-450.0,0.00019835,2]
[359860956,1746376262484,-237.7,0.00019835,2]
[359860957,1746376262493,-450.0,0.00019835,2]
[359860958,1746376262502,-450.0,0.00019835,2]
[359860959,1746376262512,-1612.09,0.00019835,2]
[359860960,1746376262521,-450.0,0.00019835,2]
[359860961,1746376262531,-500.0,0.00019835,2]
[359860962,1746376262540,-500.0,0.00019835,2]
[359860963,1746376262550,-200.0,0.00019835,2]
[359860964,1746376262559,-200.0,0.00019835,2]
[359860965,1746376262569,-500.0,0.00019835,2]
[359860966,1746376262578,-191.16249565,0.00019835,2]
[359860967,1746376262588,-200.0,0.00019835,2]
[359860968,1746376262597,-377.0,0.00019836,2]
[359860969,1746376262606,-237.47911116,0.00019839,2]
[359860970,1746376262616,-773.28006414,0.00019845,2]
[359860971,1746376262625,-500.0,0.00019863,2]
[359860972,1746376262634,-500.0,0.00019863,2]
[359860973,1746376262643,-500.0,0.00019863,2]
[359860974,1746376262652,-176.98,0.00019863,2]
[359860975,1746376262661,-450.0,0.00019863,2]
[359860976,1746376262670,-450.0,0.00019863,2]
[359860977,1746376262679,-271.64,0.00019863,2]
[359860978,1746376262688,-450.0,0.00019863,2]
[359860979,1746376262697,-585.13,0.00019863,2]
[359860980,1746376262707,-391.48,0.00019863,2]
[359860981,1746376262715,-450.0,0.00019863,2]
[359860982,1746376262725,-450.0,0.00019863,2]
[359860983,1746376262734,-450.0,0.00019863,2]
[359860984,1746376262744,-450.0,0.00019863,2]
[359860985,1746376262754,-450.0,0.00019863,2]
[359860986,1746376262763,-301.49,0.00019863,2]
[359860987,1746376262773,-450.0,0.00019863,2]
[359860988,1746376262783,-517.74,0.00019863,2]
[359860989,1746376262792,-450.0,0.00019863,2]
[359860990,1746376262801,-450.0,0.00019863,2]
[359860991,1746376262810,-450.0,0.00019863,2]
[359860992,1746376262820,-267.95,0.00019863,2]
[359860993,1746376262830,-450.0,0.00019863,2]
[359860994,1746376262841,-166.72,0.00019863,2]
[359860995,1746376262850,-220.44,0.00019863,2]
[359860996,1746376262860,-570.0,0.00019863,2]
[359860997,1746376262869,-450.0,0.00019863,2]
[359860998,1746376262879,-450.0,0.00019863,2]
[359860999,1746376262888,-570.0,0.00019863,2]
[359861000,1746376262897,-259.46,0.00019863,2]
[359861001,1746376262907,-450.0,0.00019863,2]
[359861002,1746376262916,-450.0,0.00019863,2]
[359861003,1746376262925,-418.76601085,0.00019863,2]
[359861004,1746376262934,-450.0,0.00019863,2]
[359861005,1746376262944,-450.0,0.00019863,2]
[359861006,1746376262953,-450.0,0.00019863,2]
[359861007,1746376262963,-450.0,0.00019863,2]
[359861008,1746376262972,-570.0,0.00019863,2]
[359861009,1746376262982,-399.1856,0.00019863,2]
[359861010,1746376262992,-460.62,0.00019863,2]
[359861011,1746376263002,-450.0,0.00019863,2]
[359861012,1746376263012,-443.58,0.00019863,2]
[359861013,1746376263021,-450.0,0.00019863,2]
[359861014,1746376263031,-450.0,0.00019863,2]
[359861015,1746376263041,-450.0,0.00019863,2]
[359861016,1746376263050,-490.76,0.00019863,2]
[359861017,1746376263061,-450.0,0.00019863,2]
[359861018,1746376263071,-450.0,0.00019863,2]
[359861019,1746376263080,-337.32,0.00019863,2]
[359861020,1746376263091,-450.0,0.00019863,2]
[359861021,1746376263101,-1136.58,0.00019863,2]
[359861022,1746376263111,-450.0,0.00019863,2]
[359861023,1746376263120,-176.21,0.00019863,2]
[359861024,1746376263130,-450.0,0.00019863,2]
[359861025,1746376263140,-899.51,0.00019863,2]
[359861026,1746376263150,-450.0,0.00019863,2]
[359861027,1746376263160,-524.17,0.00019863,2]
[359861028,1746376263169,-450.0,0.00019863,2]
[359861029,1746376263179,-391.96713745,0.00019863,2]
[359861030,1746376263188,-450.0,0.00019863,2]
[359861031,1746376263198,-450.0,0.00019863,2]
[359861032,1746376263208,-267.4,0.00019863,2]
[359861033,1746376263217,-847.36,0.00019863,2]
[359861034,1746376263226,-371.3,0.00019863,2]
[359861035,1746376263236,-570.03,0.00019863,2]
[359861036,1746376263246,-450.0,0.00019863,2]
[359861037,1746376263256,-3287.6,0.00019863,2]
[359861038,1746376263265,-450.0,0.00019863,2]
[359861039,1746376263275,-450.0,0.00019863,2]
[359861040,1746376263284,-450.0,0.00019863,2]
[359861041,1746376263295,-450.0,0.00019863,2]
[359861042,1746376263304,-450.0,0.00019863,2]
[359861043,1746376263315,-560.88,0.00019863,2]
[359861044,1746376263324,-450.0,0.00019863,2]
[359861045,1746376263337,-450.0,0.00019863,2]
[359861046,1746376263347,-884.57,0.00019863,2]
[359861047,1746376263356,-450.0,0.00019863,2]
[359861048,1746376263366,-2982.32,0.00019863,2]
[359861049,1746376263375,-450.0,0.00019863,2]
[359861050,1746376263385,-450.0,0.00019863,2]
[359861051,1746376263395,-450.0,0.00019863,2]
[359861052,1746376263405,-450.0,0.00019863,2]
[359861053,1746376263416,-450.0,0.00019863,2]
[359861054,1746376263427,-450.0,0.00019863,2]
[359861055,1746376263436,-450.0,0.00019863,2]
[359861056,1746376263445,-450.0,0.00019863,2]
[359861057,1746376263455,-462.62,0.00019863,2]
[359861058,1746376263466,-2778.18,0.00019863,2]
[359861059,1746376263477,-596.92,0.00019863,2]
[359861060,1746376263486,-307.11,0.00019863,2]
[359861061,1746376263496,-193.34,0.00019863,2]
[359861062,1746376263507,-266.58,0.00019863,2]
[359861063,1746376263516,-450.0,0.00019863,2]
[359861064,1746376263526,-450.0,0.00019863,2]
[359861065,1746376263536,-450.0,0.00019863,2]
[359861066,1746376263546,-450.0,0.00019863,2]
[359861067,1746376263556,-450.0,0.00019863,2]
[359861068,1746376263567,-450.0,0.00019863,2]
[359861069,1746376263577,-572.03,0.00019863,2]
[359861070,1746376263586,-450.0,0.00019863,2]
[359861071,1746376263597,-525.98,0.00019863,2]
[359861072,1746376263608,-450.0,0.00019863,2]
[359861073,1746376263619,-248.67,0.00019863,2]
[359861074,1746376263629,-450.0,0.00019863,2]
[359861075,1746376263639,-450.0,0.00019863,2]
[359861076,1746376263648,-1597.78,0.00019863,2]
[359861077,1746376263659,-450.0,0.00019863,2]
[359861078,1746376263669,-322.18,0.00019863,2]
[359861079,1746376263678,-450.0,0.00019863,2]
[359861080,1746376263688,-450.0,0.00019863,2]
[359861081,1746376263698,-550.0,0.00019863,2]
[359861082,1746376263707,-450.0,0.00019863,2]
[359861083,1746376263717,-450.0,0.00019863,2]
[359861084,1746376263726,-450.0,0.00019863,2]
[359861085,1746376263736,-450.0,0.00019863,2]
[359861086,1746376263747,-450.0,0.00019863,2]
[359861087,1746376263757,-450.0,0.00019863,2]
[359861088,1746376263767,-450.0,0.00019863,2]
[359861089,1746376263776,-450.0,0.00019863,2]
[359861090,1746376263786,-508.22,0.00019863,2]
[359861091,1746376263796,-450.0,0.00019863,2]
[359861092,1746376263806,-450.0,0.00019863,2]
[359861093,1746376263815,-23925.41,0.00019863,2]
[359861094,1746376263825,-287.6,0.00019863,2]
[359861095,1746376263835,-450.0,0.00019863,2]
[359861096,1746376263844,-369.4,0.00019863,2]
[359861097,1746376263854,-549.04,0.00019863,2]
[359861098,1746376263864,-409.23,0.00019863,2]
[359861099,1746376263874,-660.77,0.00019863,2]
[359861100,1746376263884,-450.0,0.00019863,2]
[359861101,1746376263894,-450.0,0.00019863,2]
[359861102,1746376263904,-397.52,0.00019863,2]
[359861103,1746376263913,-450.0,0.00019863,2]
[359861104,1746376263923,-500.0,0.00019863,2]
[359861105,1746376263932,-229.98,0.00019863,2]
[359861106,1746376263942,-570.01,0.00019863,2]
[359861107,1746376263952,-433.62,0.00019863,2]
[359861108,1746376263962,-482.55,0.00019863,2]